bitfinex-derivatives/quotes_ETHF0:USTF0_20250620
["timestamp","ask_amount","ask_price","bid_price","bid_amount"]
[1750389709609,3.8674,2521.2,2521.1,0.79323]
[1750389709807,1.4528,2521.2,2521.1,0.79323]
[1750389710510,0.6596,2521.2,2521.1,0.79323]
[1750389711410,1.4528,2521.2,2521.1,0.79323]
[1750389712112,0.6596,2521.2,2521.1,0.79323]
[1750389713715,0.7932,2521.3,2521.2,0.7932]
[1750389714218,2.74199781,2521.4,2521.3,0.79317]
[1750389714419,3.76860177,2521.4,2521.3,0.79317]
[1750389715717,2.51160177,2521.4,2521.3,0.79317]
[1750389716924,0.79323,2521.2,2521.1,0.7932]
[1750389720720,1.3596,2521.3,2521.2,0.7932]
[1750389720721,0.7932,2521.3,2521.2,0.7932]
[1750389720923,0.86249781,2521.4,2521.3,0.79317]
[1750389721423,1.89108257,2521.4,2521.3,0.79317]
[1750389721627,0.7932,2521.3,2521.2,0.79318]
[1750389722917,2.0741,2521.3,2521.2,0.79318]
[1750389723122,3.10321358,2521.3,2521.2,0.79318]
[1750389725928,3.17255139,2521.3,2521.2,0.79318]
[1750389726127,3.17255139,2521.3,2520.9,12.04535217]
[1750389726128,0.79326,2521.2,2520.9,12.04535217]
[1750389726322,0.79326,2521.2,2521.1,0.79321]
[1750389726522,2.10476,2521.2,2521.1,0.79321]
[1750389727226,3.1349981,2521.2,2521.1,0.79321]
[1750389729220,0.7933,2521.0,2520.9,0.79326]
[1750389729629,3.19207633,2521.0,2520.9,0.79326]
[1750389731926,3.19194761,2521.0,2520.9,0.79326]
[1750389732128,2.16166,2521.0,2520.9,0.79326]
[1750389735932,0.79326,2521.0,2520.9,0.79326]
[1750389736134,0.79326,2521.0,2520.9,1.47896]
[1750389736335,2.10616,2521.1,2521.0,0.79326]
[1750389736536,3.13655897,2521.1,2521.0,0.79326]
[1750389741039,3.1365209,2521.1,2521.0,0.79326]
[1750389741235,3.20585871,2521.1,2521.0,0.79326]
[1750389744744,1.09969871,2521.1,2521.0,0.79326]
[1750389745051,0.06933781,2521.1,2521.0,0.79326]
[1750389747750,0.86256781,2521.1,2521.0,0.79326]
[1750389748248,0.06933781,2521.1,2521.0,0.79326]
[1750389748451,0.86256781,2521.1,2521.0,0.79326]
[1750389749151,1.89362627,2521.1,2521.0,0.79326]
[1750389749559,1.10039627,2521.1,2521.0,0.79326]
[1750389749742,0.06933781,2521.1,2521.0,0.79326]
[1750389755246,0.06933781,2521.1,2521.0,2.15046]
[1750389759742,0.06933781,2521.1,2521.0,7.15046]
[1750389759955,7.81e-06,2521.1,2521.0,7.15046]
[1750389761156,7.81e-06,2521.1,2521.0,10.32872997]
[1750389761657,7.81e-06,2521.1,2521.0,7.15046]
[1750389761854,7.81e-06,2521.1,2521.0,10.32872997]
[1750389762055,7.81e-06,2521.1,2521.0,7.15046]
[1750389762849,7.81e-06,2521.1,2521.0,10.30888217]
[1750389763058,7.81e-06,2521.1,2521.0,7.15046]
[1750389763357,7.81e-06,2521.1,2521.0,10.30888217]
[1750389764152,7.81e-06,2521.1,2521.0,14.28171963]
[1750389764750,7.81e-06,2521.1,2521.0,10.30888217]
[1750389766361,7.81e-06,2521.1,2521.0,7.15046]
[1750389766657,7.81e-06,2521.1,2521.0,37.42346]
[1750389766858,7.81e-06,2521.1,2521.0,40.57159343]
[1750389769464,7.81e-06,2521.1,2521.0,43.7300156]
[1750389770255,7.81e-06,2521.1,2521.0,40.57159343]
[1750389772963,7.81e-06,2521.1,2521.0,43.7300156]
[1750389773464,7.81e-06,2521.1,2521.0,40.57159343]
[1750389773864,7.81e-06,2521.1,2521.0,43.7300156]
[1750389774467,7.81e-06,2521.1,2521.0,40.58188217]
[1750389778469,0.6872,2521.6,2521.5,0.79311]
[1750389778666,0.6872,2521.6,2521.5,37.40933217]
[1750389782571,1.3468,2522.0,2521.9,0.79298]
[1750389782874,1.3468,2522.0,2521.9,34.19140217]
[1750389783975,1.988,2522.0,2521.9,34.19140217]
[1750389785074,1.988,2522.0,2521.9,34.51278903]
[1750389787074,3.2078,2522.5,2522.4,0.79282]
[1750389787275,3.2078,2522.5,2522.4,24.85882]
[1750389787869,0.79276,2522.6,2522.5,0.79279]
[1750389788572,1.02723463,2522.6,2522.5,0.79279]
[1750389788774,2.29143463,2522.6,2522.5,0.79279]
[1750389788972,3.08419463,2522.6,2522.5,0.79279]
[1750389789278,2.05696,2522.6,2522.5,0.79279]
[1750389789477,3.08451358,2522.6,2522.5,0.79279]
[1750389789978,2.05696,2522.6,2522.5,0.79279]
[1750389790180,1.2642,2522.6,2522.5,0.79279]
[1750389790379,2.05696,2522.6,2522.5,0.79279]
[1750389790876,3.08447395,2522.6,2522.5,0.79279]
[1750389791269,2.05696,2522.6,2522.5,0.79279]
[1750389792376,1.2642,2522.6,2522.5,0.79279]
[1750389795481,1.2642,2522.6,2522.5,3.95121217]
[1750389798381,0.6569,2522.7,2522.6,0.79276]
[1750389798589,0.6338,2522.8,2522.7,0.79273]
[1750389798879,1.2637,2523.1,2523.0,0.79264]
[1750389799081,1.938,2523.1,2523.0,31.21686217]
[1750389800387,0.6743,2523.1,2523.0,31.21686217]
[1750389803991,0.6812,2523.3,2523.2,0.79257]
[1750389804189,0.6812,2523.3,2523.2,31.02257]
[1750389804381,0.6812,2523.3,2523.2,34.18099217]
[1750389805483,0.6812,2523.3,2523.2,0.79257]
[1750389805683,0.6812,2523.3,2523.2,31.01657]
[1750389805994,2.0152,2523.3,2523.2,31.01657]
[1750389807182,2.0152,2523.3,2523.2,24.84457]
[1750389807183,2.80774,2523.3,2523.2,24.84457]
[1750389807388,2.0152,2523.3,2523.2,24.84457]
[1750389808581,7.0152,2523.3,2522.8,1.98174]
[1750389808787,0.79264,2523.1,2523.0,0.79261]
[1750389809090,3.95106217,2523.1,2523.0,0.79261]
[1750389809288,4.60846217,2523.1,2523.0,0.79261]
[1750389809492,1.45004,2523.1,2523.0,0.79261]
[1750389811590,2.79534,2523.1,2523.0,0.79261]
[1750389814291,2.86467781,2523.1,2523.0,0.79261]
[1750389814994,0.79268,2523.0,2522.9,0.79264]
[1750389815193,2.13048,2523.0,2522.9,0.79264]
[1750389816296,5.28890217,2523.0,2522.9,0.79264]
[1750389820093,2.13048,2523.0,2522.9,0.79264]
[1750389823997,0.79273,2522.8,2522.7,0.79268]
[1750389824602,2.04873,2522.8,2522.7,0.79268]
[1750389825205,0.79276,2522.7,2522.6,0.79273]
[1750389825396,2.04876,2522.7,2522.6,0.79273]
[1750389826500,1.256,2522.7,2522.6,0.79273]
[1750389826700,1.41858,2522.9,2522.8,0.7927]
[1750389827705,0.79275,2522.8,2522.7,0.7927]
[1750389827905,2.04855,2522.8,2522.7,0.7927]
[1750389828701,0.79276,2522.7,2522.6,0.79274]
[1750389828911,2.04856,2522.7,2522.6,0.79274]
[1750389832815,0.79279,2522.6,2522.5,0.79277]
[1750389833005,3.50259,2522.6,2522.5,0.79277]
[1750389833205,6.66101217,2522.6,2522.5,0.79277]
[1750389833403,0.79279,2522.5,2522.4,0.79279]
[1750389833605,2.17419,2522.5,2522.4,0.79279]
[1750389838415,2.12118,2522.6,2522.5,0.79279]
[1750389838606,3.14770172,2522.6,2522.5,0.79279]
[1750389838916,3.14768172,2522.6,2522.5,0.79279]
[1750389839510,2.48708172,2522.6,2522.5,0.79279]
[1750389839717,1.02652172,2522.6,2522.5,0.79279]
[1750389839920,4.00055,2522.7,2522.6,0.79276]
[1750389840105,5.02712692,2522.7,2522.6,0.79276]
[1750389840309,0.06933781,2522.9,2522.8,0.7927]
[1750389840518,0.86200781,2522.9,2522.8,0.7927]
[1750389841718,0.06933781,2522.9,2522.8,0.7927]
[1750389843223,0.86200781,2522.9,2522.8,0.7927]
[1750389843719,0.06933781,2522.9,2522.8,0.7927]
[1750389844521,0.86200781,2522.9,2522.8,0.7927]
[1750389845115,4.02042998,2522.9,2522.8,0.7927]
[1750389845320,5.04730239,2522.9,2522.8,0.7927]
[1750389846008,1.88888022,2522.9,2522.8,0.7927]
[1750389846417,3.26388022,2522.9,2522.8,0.7927]
[1750389846616,2.47121022,2522.9,2522.8,0.7927]
[1750389846815,1.44433781,2522.9,2522.8,0.7927]
[1750389847119,2.23700781,2522.9,2522.8,0.7927]
[1750389847310,3.26327352,2522.9,2522.8,0.7927]
[1750389847511,3.2633241,2522.9,2522.8,0.7927]
[1750389847913,0.79274,2522.8,2522.7,0.7927]
[1750389848107,2.80244,2522.8,2522.7,0.7927]
[1750389848615,6.01024,2522.8,2522.7,0.7927]
[1750389851520,7.03679227,2522.8,2522.7,0.7927]
[1750389852108,6.01024,2522.8,2522.7,0.7927]
[1750389852514,2.80244,2522.8,2522.7,0.7927]
[1750389854228,3.82920405,2522.8,2522.7,0.7927]
[1750389857216,2.80244,2522.8,2522.7,0.7927]
[1750389857716,3.829472,2522.8,2522.7,0.7927]
[1750389859724,1.027032,2522.8,2522.7,0.7927]
[1750389859915,0.79268,2522.9,2522.8,0.7927]
[1750389860116,0.79266,2523.0,2522.9,0.79267]
[1750389860426,1.81963074,2523.0,2522.9,0.79267]
[1750389864022,0.79267,2522.9,2522.8,1.43568]
[1750389864333,3.85064074,2522.9,2522.8,1.43568]
[1750389864823,2.82367,2522.9,2522.8,1.43568]
[1750389865025,2.47593063,2522.9,2522.8,1.43568]
[1750389873136,1.81983063,2522.9,2522.8,1.43568]
[1750389874037,1.02716063,2522.9,2522.8,1.43568]
[1750389874843,1.81983063,2522.9,2522.8,1.43568]
[1750389875340,1.88916844,2522.9,2522.8,1.43568]
[1750389876048,1.09649844,2522.9,2522.8,1.43568]
[1750389876543,1.88916844,2522.9,2522.8,1.43568]
[1750389881134,1.09649844,2522.9,2522.8,1.43568]
[1750389881348,1.88916844,2522.9,2522.8,1.43568]
[1750389884050,1.09649844,2522.9,2522.8,1.43568]
[1750389884447,1.88916844,2522.9,2522.8,1.43568]
[1750389884750,3.21596844,2522.9,2522.8,1.43568]
[1750389889754,3.21723762,2522.9,2522.8,1.43568]
[1750389890548,1.09776762,2522.9,2522.8,1.43568]
[1750389891461,4.25618979,2522.9,2522.2,3.14825355]
[1750389891653,5.18981,2522.5,2521.8,3.14825355]
[1750389891953,3.95140217,2522.0,2521.9,0.79296]
[1750389892143,4.97981198,2522.0,2521.9,0.79298]
[1750389892344,4.18685198,2522.0,2521.8,0.6767]
[1750389892558,0.79292,2522.1,2521.9,0.79296]
[1750389892759,1.256,2522.0,2521.9,0.79298]
[1750389894053,1.4674,2522.2,2521.8,0.6767]
[1750389894360,2.0378,2522.4,2522.3,0.79285]
[1750389894552,3.06418785,2522.4,2522.3,0.79285]
[1750389895158,0.79286,2522.3,2522.2,0.79287]
[1750389895458,2.83064,2522.4,2522.3,0.79285]
[1750389895756,3.85651437,2522.4,2522.3,0.79285]
[1750389895954,2.0378,2522.4,2522.3,0.79285]
[1750389896350,3.2078,2522.5,2522.4,0.79282]
[1750389896955,3.2078,2522.5,2522.4,1.47052]
[1750389899764,3.2078,2522.5,2521.9,0.6314]
[1750389899765,7.4020796,2522.5,2521.9,0.6314]
[1750389899954,3.95130217,2522.3,2522.2,0.79288]
[1750389900651,5.29450217,2522.3,2522.2,0.79288]
[1750389900964,0.79289,2522.2,2521.7,5.19039]
[1750389901260,0.79293,2522.1,2522.0,0.79292]
[1750389901754,1.44143,2522.1,2522.0,0.79292]
[1750389902061,0.6485,2522.1,2522.0,0.79292]
[1750389902759,1.44142,2522.1,2522.0,0.79292]
[1750389903160,2.75562,2522.1,2522.0,0.79292]
[1750389904571,0.79295,2522.0,2521.9,1.42257]
[1750389904865,2.10715,2522.0,2521.9,1.42257]
[1750389905065,0.79301,2521.8,2521.7,3.2078]
[1750389905256,0.79308,2521.6,2521.5,0.6491]
[1750389905457,0.79311,2521.5,2521.4,6.185]
[1750389905659,2.16981,2521.5,2521.4,6.185]
[1750389906573,2.16981,2521.5,2521.4,0.79314]
[1750389907963,0.79318,2521.4,2521.3,0.79315]
[1750389908264,0.79318,2521.4,2521.2,0.79318]
[1750389908265,0.7932,2521.3,2521.2,0.79318]
[1750389908568,0.79323,2521.2,2521.1,0.79321]
[1750389908770,0.79323,2521.2,2521.0,3.2078]
[1750389908771,0.79323,2521.1,2521.0,4.00104]
[1750389909067,1.2749,2521.2,2521.1,0.79323]
[1750389910269,2.0681,2521.2,2521.1,0.79323]
[1750389911171,0.79323,2521.1,2521.0,0.79325]
[1750389911467,0.79329,2521.0,2520.9,0.79326]
[1750389911859,2.08149,2521.0,2520.9,0.79326]
[1750389912470,1.2882,2521.0,2520.9,0.79326]
[1750389912772,2.08147,2521.0,2520.9,0.79326]
[1750389913070,1.2882,2521.0,2520.9,0.79326]
[1750389914066,2.08147,2521.0,2520.9,0.79326]
[1750389914568,1.2882,2521.0,2520.9,0.79326]
[1750389915470,2.08147,2521.0,2520.9,0.79326]
[1750389916567,0.79332,2520.9,2520.8,0.7933]
[1750389916762,2.76062,2520.9,2520.8,0.7933]
[1750389918368,0.79336,2520.8,2520.7,0.79333]
[1750389918570,2.14916,2520.8,2520.7,0.79333]
[1750389918971,2.81966,2520.8,2520.7,0.79333]
[1750389919568,5.2341,2520.8,2520.3,3.2078]
[1750389919882,3.95185217,2520.6,2520.5,0.7934]
[1750389920071,0.79343,2520.6,2520.5,0.7934]
[1750389920671,1.3558,2520.7,2520.3,3.2078]
[1750389920874,0.79349,2520.4,2520.3,0.79346]
[1750389921278,2.16259,2520.4,2520.3,0.79346]
[1750389921577,5.32101217,2520.4,2520.3,0.79346]
[1750389922274,0.79353,2520.3,2520.2,0.79349]
[1750389922475,2.83063,2520.3,2520.2,0.79349]
[1750389922870,0.79355,2520.2,2520.1,0.79354]
[1750389923069,2.16265,2520.2,2520.1,0.79354]
[1750389923578,5.32107217,2520.2,2520.1,0.79354]
[1750389923974,4.52752217,2520.2,2520.1,0.79354]
[1750389924176,1.3691,2520.2,2520.1,0.79354]
[1750389925173,0.6323,2520.5,2520.4,0.79345]
[1750389925174,6.8213,2520.5,2520.4,0.79345]
[1750389925878,8.1739,2520.5,2520.4,0.79345]
[1750389927176,1.9849,2520.5,2520.4,0.79345]
[1750389927577,0.6664,2520.6,2520.5,0.79342]
[1750389927776,3.2078,2520.7,2520.6,0.79339]
[1750389928275,0.74033781,2520.9,2520.8,0.79333]
[1750389929282,2.09183781,2520.9,2520.8,0.79333]
[1750389931178,3.55413781,2520.9,2520.8,0.79333]
[1750389931484,0.79333,2520.8,2520.7,1.46783]
[1750389931684,2.06993,2520.8,2520.7,1.46783]
[1750389932080,0.79339,2520.7,2520.6,0.79337]
[1750389932286,2.06999,2520.7,2520.6,0.79337]
[1750389933088,1.2766,2520.7,2520.6,0.79337]
[1750389935986,1.34593781,2520.7,2520.6,0.79337]
[1750389938184,2.13929781,2520.7,2520.6,0.79337]
[1750389939587,0.79343,2520.6,2520.5,0.79339]
[1750389939788,5.23385217,2520.6,2520.5,0.79339]
[1750389941985,5.23385217,2520.6,2520.1,3.27685152]
[1750389942189,3.15842217,2520.4,2520.3,0.79349]
[1750389944196,1.9503,2520.5,2520.4,0.79345]
[1750389944398,2.74372,2520.5,2520.4,0.79345]
[1750389944894,1.9503,2520.5,2520.4,0.79345]
[1750389948687,0.06933781,2520.7,2520.6,0.79339]
[1750389948998,7.33348811,2520.7,2520.6,0.79339]
[1750389949195,1.10648811,2520.7,2520.6,0.79339]
[1750389950095,1.89984811,2520.7,2520.6,0.79339]
[1750389950295,1.8305103,2520.7,2520.6,0.79339]
[1750389950490,3.2110103,2520.7,2520.6,0.79339]
[1750389950793,6.36943247,2520.7,2520.6,0.79339]
[1750389951391,3.2078,2521.0,2520.9,0.7933]
[1750389951594,1.03738612,2521.0,2520.9,0.7933]
[1750389951790,0.79324,2521.2,2521.1,0.7932]
[1750389951988,3.11972758,2521.2,2521.1,0.7932]
[1750389952486,2.32648758,2521.2,2521.1,0.7932]
[1750389952881,1.309,2521.3,2521.2,0.7932]
[1750389953082,2.34587818,2521.3,2521.2,0.7932]
[1750389954096,3.13904818,2521.3,2521.2,0.7932]
[1750389954593,4.40624818,2521.3,2521.2,0.7932]
[1750389954794,3.36937,2521.3,2521.2,0.7932]
[1750389955195,2.5762,2521.3,2521.2,0.7932]
[1750389958191,3.36937,2521.3,2521.2,0.7932]
[1750389958391,2.5762,2521.3,2521.2,0.7932]
[1750389958798,3.36937,2521.3,2521.2,0.7932]
[1750389959093,2.5762,2521.3,2521.2,0.7932]
[1750389959800,3.36937,2521.3,2521.2,0.7932]
[1750389964401,3.43870781,2521.3,2521.2,0.7932]
[1750389964598,2.64553781,2521.3,2521.2,0.7932]
[1750389964797,0.06933781,2521.3,2521.2,0.7932]
[1750389969605,0.06933781,2521.3,2521.2,7.0042]
[1750389970003,0.06933781,2521.3,2521.2,10.16262217]
[1750389970209,0.06933781,2521.3,2521.2,16.41152217]
[1750389970909,0.06933781,2521.3,2521.2,11.41152217]
[1750389971207,0.06933781,2521.3,2521.2,10.16262217]
[1750389975012,0.06933781,2521.3,2521.2,11.47812217]
[1750389975207,0.06933781,2521.3,2521.2,8.3197]
[1750389975509,0.06933781,2521.3,2521.2,11.47812217]
[1750389975709,0.06933781,2521.3,2521.2,10.16262217]
[1750389976110,0.06933781,2521.3,2521.2,7.0042]
[1750389976406,0.06933781,2521.3,2521.2,0.7932]
[1750389976603,4.02092998,2521.3,2521.2,0.7932]
[1750389977001,0.7932,2521.2,2521.1,0.79322]
[1750389977205,2.1301,2521.2,2521.1,0.79322]
[1750389977704,1.3369,2521.2,2521.1,0.79322]
[1750389980598,1.40623781,2521.2,2521.1,0.79322]
[1750389989913,2.05623781,2521.2,2521.1,0.79322]
[1750389990604,2.84943781,2521.2,2521.1,0.79322]
[1750389994017,2.05623781,2521.2,2521.1,0.79322]
[1750390002419,0.06933781,2521.2,2521.1,4.00102]
[1750390002619,7.81e-06,2521.2,2521.1,9.65062]
[1750390002820,7.81e-06,2521.2,2521.1,10.92812]
[1750390003221,7.81e-06,2521.2,2521.1,14.07637355]
[1750390005430,7.81e-06,2521.2,2521.1,9.07637355]
[1750390008741,7.81e-06,2521.2,2521.1,10.92812]
[1750390008942,7.81e-06,2521.2,2521.1,14.90095746]
[1750390009342,7.81e-06,2521.2,2521.1,60.59195746]
[1750390010439,7.81e-06,2521.2,2521.1,90.87295746]
[1750390010639,7.81e-06,2521.2,2521.1,86.90012]
[1750390010942,7.81e-06,2521.2,2521.1,86.89912]
[1750390015349,7.81e-06,2521.2,2521.1,87.30225913]
[1750390015742,7.81e-06,2521.2,2521.1,51.61912]
[1750390015949,7.81e-06,2521.2,2521.1,85.04254217]
[1750390017246,7.81e-06,2521.2,2521.1,49.69202]
[1750390017550,0.79335,2520.8,2520.7,0.79334]
[1750390018547,0.79337,2520.7,2520.6,0.79337]
[1750390018742,1.3207,2520.7,2520.6,0.79337]
[1750390019342,5.32186,2520.7,2520.6,0.79337]
[1750390019649,4.5285,2520.7,2520.6,0.79337]
[1750390023050,1.3207,2520.7,2520.6,0.79337]
[1750390026457,1.39003781,2520.7,2520.6,0.79337]
[1750390034958,2.05523781,2520.7,2520.6,0.79337]
[1750390037066,2.05523781,2520.7,2520.6,3.95179217]
[1750390037255,0.73453781,2520.7,2520.6,10.15179217]
[1750390037455,0.06933781,2520.7,2520.6,10.15179217]
[1750390037665,0.06933781,2520.7,2520.6,10.80039217]
[1750390038463,7.81e-06,2520.7,2520.6,10.80039217]
[1750390038765,7.81e-06,2520.7,2520.6,11.47579217]
[1750390039067,7.81e-06,2520.7,2520.6,12.77929217]
[1750390039264,7.81e-06,2520.7,2520.6,17.77929217]
[1750390039570,7.81e-06,2520.7,2520.6,12.77929217]
[1750390051574,7.81e-06,2520.7,2520.6,11.47579217]
[1750390053176,7.81e-06,2520.7,2520.6,12.80279217]
[1750390057478,7.81e-06,2520.7,2520.6,11.47579217]
[1750390059076,7.81e-06,2520.7,2520.6,4.60039217]
[1750390059276,7.81e-06,2520.7,2520.6,34.85639217]
[1750390060769,7.81e-06,2520.7,2520.6,3.95179217]
[1750390060970,7.81e-06,2520.7,2520.6,31.04937]
[1750390061166,7.81e-06,2520.7,2520.6,34.20779217]
[1750390064480,7.81e-06,2520.7,2520.6,37.35820273]
[1750390067480,7.81e-06,2520.7,2520.6,34.20779217]
[1750390078192,7.81e-06,2520.7,2520.6,37.41559217]
[1750390081289,0.55676762,2521.2,2521.1,0.79323]
[1750390081495,0.6708,2521.5,2521.2,0.7932]
[1750390081791,0.6708,2521.5,2521.3,24.074]
[1750390081996,0.6708,2521.5,2521.4,0.79314]
[1750390083694,0.6708,2521.5,2521.4,3.95156217]
[1750390085083,1.917,2521.5,2521.4,3.95156217]
[1750390085288,1.98633781,2521.5,2521.4,3.95156217]
[1750390090894,1.98633781,2521.5,2521.4,24.86314]
[1750390091292,0.06933781,2521.5,2521.4,31.22936217]
[1750390095101,1.31513781,2521.5,2521.4,31.22936217]
[1750390095599,7.81e-06,2521.5,2521.4,31.22936217]
[1750390095897,1.2458,2522.1,2522.0,0.79295]
[1750390096097,3.2078,2522.5,2522.4,0.79283]
[1750390096302,3.2078,2522.5,2522.4,24.86583]
[1750390097098,3.2078,2522.5,2522.4,0.79283]
[1750390099105,3.8574,2522.5,2522.4,0.79283]
[1750390099497,3.92673781,2522.5,2522.4,0.79283]
[1750390100907,4.55753781,2522.5,2522.4,0.79283]
[1750390102308,1.34973781,2522.5,2522.4,0.79283]
[1750390105210,2.60253781,2522.5,2522.4,0.79283]
[1750390116739,1.32213781,2522.5,2522.4,0.79283]
[1750390117634,0.06933781,2522.5,2522.4,0.79283]
[1750390130645,8.22775998,2522.5,2522.3,3.94369654]
[1750390130838,0.7929,2522.2,2522.1,0.7929]
[1750390131046,6.55095,2522.4,2522.2,0.79287]
[1750390131242,1.259,2522.3,2522.2,0.79287]
[1750390132750,0.7929,2522.2,2522.1,0.7929]
[1750390133949,0.79294,2522.1,2522.0,0.79293]
[1750390134151,2.14204,2522.1,2522.0,0.79293]
[1750390137853,1.3491,2522.1,2522.0,0.79293]
[1750390146176,1.41843781,2522.1,2522.0,0.79293]
[1750390148375,0.06933781,2522.1,2522.0,0.79293]
[1750390154282,1.44863781,2522.1,2522.0,0.79293]
[1750390157178,0.06933781,2522.1,2522.0,3.95135217]
[1750390157374,7.81e-06,2522.1,2522.0,13.28177434]
[1750390157588,7.81e-06,2522.1,2522.0,11.37665217]
[1750390157786,7.81e-06,2522.1,2522.0,14.52751871]
[1750390165094,7.81e-06,2522.1,2522.0,13.27421871]
[1750390168603,7.81e-06,2522.1,2522.0,37.32721871]
[1750390172501,7.81e-06,2522.1,2522.0,34.17635217]
[1750390173003,7.81e-06,2522.1,2522.0,40.53501871]
[1750390174389,7.81e-06,2522.1,2522.0,10.31001871]
[1750390174593,7.81e-06,2522.1,2522.0,40.53401871]
[1750390178594,7.81e-06,2522.1,2522.0,48.69244088]
[1750390179397,7.81e-06,2522.1,2522.0,43.69244088]
[1750390181402,7.81e-06,2522.1,2522.0,40.53401871]
[1750390182294,7.81e-06,2522.1,2522.0,40.53461681]
[1750390182695,7.81e-06,2522.1,2522.0,37.38315217]
[1750390189114,7.81e-06,2522.1,2522.0,40.54157434]
[1750390191415,7.81e-06,2522.1,2522.0,44.49508713]
[1750390192222,7.81e-06,2522.1,2522.0,40.54157434]
[1750390192424,7.81e-06,2522.1,2522.0,37.38315217]
[1750390195126,7.81e-06,2522.1,2522.0,7.15915217]
[1750390195320,7.81e-06,2522.1,2522.0,37.37415217]
[1750390197128,7.81e-06,2522.1,2522.0,7.15915217]
[1750390197428,7.81e-06,2522.1,2522.0,13.32491509]
[1750390197823,7.81e-06,2522.1,2522.0,34.21573]
[1750390198023,5.00000781,2522.1,2522.0,4.00073]
[1750390198223,6.81242987,2522.1,2522.0,0.79293]
[1750390200229,6.01950987,2522.1,2522.0,0.79293]
[1750390200832,7.81e-06,2522.1,2522.0,3.95135217]
[1750390201233,1.25000781,2522.1,2522.0,3.95135217]
[1750390201832,1.25000781,2522.1,2522.0,0.79293]
[1750390202033,1.25000781,2522.1,2522.0,24.84093]
[1750390203136,9.45780781,2522.1,2521.4,6.36398509]
[1750390203435,3.2078,2521.8,2521.7,0.79305]
[1750390203635,3.2078,2521.8,2521.5,1.98275]
[1750390203636,1.9457,2522.0,2521.9,0.79299]
[1750390203840,7.96404359,2522.0,2521.9,0.79299]
[1750390204136,3.75699359,2522.0,2521.9,0.79299]
[1750390205736,2.73865,2522.0,2521.9,0.79299]
[1750390205929,1.9457,2522.0,2521.9,0.79299]
[1750390206840,2.73865,2522.0,2521.9,0.79299]
[1750390207338,1.9457,2522.0,2521.9,0.79299]
[1750390209340,2.73865,2522.0,2521.9,0.79299]
[1750390209839,1.9457,2522.0,2521.9,0.79299]
[1750390212339,2.73865,2522.0,2521.9,0.79299]
[1750390217345,0.79302,2521.8,2521.7,4.0008]
[1750390217546,0.79302,2521.8,2521.7,0.793]
[1750390219043,2.13471,2521.9,2521.8,0.79302]
[1750390221946,0.79308,2521.6,2521.5,6.96009]
[1750390222843,2.04548,2521.6,2521.5,6.96009]
[1750390225347,2.04548,2521.6,2521.5,0.79309]
[1750390226441,1.2524,2521.6,2521.5,0.79309]
[1750390226744,2.27201485,2521.6,2521.5,0.79309]
[1750390226939,3.06508485,2521.6,2521.5,0.79309]
[1750390228048,2.27201485,2521.6,2521.5,0.79309]
[1750390229352,3.06509485,2521.6,2521.5,0.79309]
[1750390235056,2.27201485,2521.6,2521.5,0.79309]
[1750390235252,3.06509485,2521.6,2521.5,0.79309]
[1750390235754,2.27201485,2521.6,2521.5,0.79309]
[1750390236256,3.06509485,2521.6,2521.5,0.79309]
[1750390236457,3.13443266,2521.6,2521.5,0.79309]
[1750390242762,1.08895266,2521.6,2521.5,0.79309]
[1750390244268,1.88203266,2521.6,2521.5,0.79309]
[1750390244468,3.14493266,2521.6,2521.5,0.79309]
[1750390246471,2.35185266,2521.6,2521.5,0.79309]
[1750390246769,1.08895266,2521.6,2521.5,4.00089]
[1750390247070,1.88203266,2521.6,2521.5,0.79309]
[1750390247462,3.19523266,2521.6,2521.5,0.79309]
[1750390250974,1.08895266,2521.6,2521.5,0.79309]
[1750390251368,1.88203266,2521.6,2521.5,0.79309]
[1750390255881,2.53453266,2521.6,2521.5,0.79309]
[1750390256070,0.79314,2521.5,2521.4,0.79312]
[1750390256273,3.14645485,2521.5,2521.4,0.79312]
[1750390264891,1.01961485,2521.5,2521.4,0.79312]
[1750390265092,0.79305,2521.7,2521.6,0.79308]
[1750390265386,1.82225916,2521.7,2521.6,0.79308]
[1750390265586,3.18275916,2521.7,2521.6,0.79308]
[1750390266289,0.79311,2521.6,2521.5,0.79308]
[1750390266498,3.08261916,2521.6,2521.5,0.79308]
[1750390266996,6.24104133,2521.6,2521.5,0.79308]
[1750390268493,0.79317,2521.5,2521.4,0.79312]
[1750390268683,4.37937916,2521.5,2521.4,0.79312]
[1750390268880,4.44871697,2521.5,2521.4,0.79312]
[1750390269296,0.79317,2521.3,2521.2,3.2078]
[1750390269483,0.79323,2521.1,2521.0,1.43052]
[1750390269686,0.79323,2521.1,2521.0,0.79322]
[1750390269894,1.82243916,2521.1,2521.0,0.79322]
[1750390270086,3.78173916,2521.1,2521.0,0.79322]
[1750390272390,3.11513916,2521.1,2521.0,0.79322]
[1750390272689,1.02920916,2521.1,2521.0,0.79322]
[1750390272889,0.79321,2521.2,2521.1,0.79323]
[1750390273099,1.82109629,2521.2,2521.1,0.79323]
[1750390273498,3.10529629,2521.2,2521.1,0.79323]
[1750390273803,1.02788629,2521.2,2521.1,0.79323]
[1750390273990,0.79316,2521.4,2521.3,0.79317]
[1750390274297,1.82082335,2521.4,2521.3,0.79317]
[1750390274998,3.11572335,2521.4,2521.3,0.79317]
[1750390276499,0.79317,2521.3,2521.2,1.48158]
[1750390276701,3.11573335,2521.3,2521.2,1.48158]
[1750390281006,3.18507116,2521.3,2521.2,1.48158]
[1750390283406,1.09700116,2521.3,2521.2,1.48158]
[1750390284814,1.89017116,2521.3,2521.2,1.48158]
[1750390285701,1.09700116,2521.3,2521.2,1.48158]
[1750390285903,1.89017116,2521.3,2521.2,1.48158]
[1750390286309,1.09700116,2521.3,2521.2,1.48158]
[1750390286507,0.06933781,2521.3,2521.2,4.68938]
[1750390286709,0.06933781,2521.3,2521.2,6.01408]
[1750390297110,0.06933781,2521.3,2521.2,4.68938]
[1750390302510,0.06933781,2521.3,2521.2,1.48158]
[1750390302709,0.06933781,2521.3,2521.2,4.68938]
[1750390304722,0.06933781,2521.3,2521.2,1.48158]
[1750390304924,0.06933781,2521.3,2521.2,4.68938]
[1750390309824,0.06933781,2521.3,2521.2,28.72938]